Cogmind - Beta 14 @@@ ROGUE MODE // 2024.08.27 @ 00:55:00 Player: cabin Result: Destroyed by S-27 Virus with Autogun Performance ------------- Evolutions (4) 2000 Regions Visited (9) 1800 Robots Destroyed (11) 55 Value Destroyed (291) 291 Prototype IDs (25) 500 Alien Tech Used (0) 0 Bonus (300) 300 TOTAL SCORE: 4946 Bonus ------- Aligned with FarCom 300 Cogmind --------- Core Integrity 0/850 Matter 160/300 Energy 275/275 System Corruption 6% Temperature Cool (0) Movement Core (150) Ox2 Location -6/Lower Caves Parts ------- > --- POWER (1) -------- Deuterium Engine > --- PROPULSION (2) --- (None) > --- UTILITY (10) ----- (None) > --- WEAPON (2) ------- (None) > --- INVENTORY (5) ---- Light Ion Engine Peak State ------------ > --- POWER ------------ F-cell Engine > --- PROPULSION ------- Improved VTOL Module Xenon Bombardment Thruster > --- UTILITY ---------- Advanced Weight Redist. System Enhanced Optical Array Advanced Signal Interpreter Improved Terrain Scanner Improved Terrain Scanner 0b10 Alert Chip Weapon Cycler Improved Reaction Control System System Shield Supersonic Drone Bay > --- WEAPON ----------- (None) > --- INVENTORY -------- Light Ion Engine Deuterium Engine Improved VTOL Module Improved VTOL Module [Rating: 60] Favorites ----------- Power Light Ion Engine Engine Light Ion Engine Power Core Light Nuclear Core Propulsion Combat Airjet Treads Light Treads Hover Unit Combat Airjet Flight Unit VTOL Module Utility 0b10 Alert Chip Device Supersonic Drone Bay Storage Small Storage Unit Processor 0b10 Alert Chip Hackware System Shield Weapon Assault Rifle Energy Gun Medium Laser Ballistic Gun Assault Rifle Launcher Rocket Launcher Piercing Weapon Heavy Pick Build | -11 -10 -10 -10 -9 -8 -8 -7 -6 -6 ------- Run | Yrd Mat Min Exi Min Mat Sto Fac Fac Low Slots Evolved 8 | . . . . . 4 . 2 2 . Power . | . . . . . . . . . . Propulsion . | . . . . . . . . . . Utility 8 | . . . . . 4 . 2 2 . Weapon . | . . . . . . . . . . Parts Attached 57 | 6 . 3 1 11 6 6 6 16 2 Power 13 | 1 . . . 2 . 2 1 6 1 Engine 11 | 1 . . . 2 . 1 1 5 1 Core 2 | . . . . . . 1 . 1 . Reactor . | . . . . . . . . . . Propulsion 18 | 2 . 2 . 6 . 2 2 3 1 Treads 2 | 2 . . . . . . . . . Leg . | . . . . . . . . . . Wheel . | . . . . . . . . . . Hover 3 | . . 2 . 1 . . . . . Flight 13 | . . . . 5 . 2 2 3 1 Utility 20 | 1 . 1 1 1 6 1 3 6 . Device 9 | . . . . 1 2 . 3 3 . Storage 3 | 1 . . . . 2 . . . . Processor 6 | . . 1 1 . 2 . . 2 . Hackware 2 | . . . . . . 1 . 1 . Protection . | . . . . . . . . . . Artifact . | . . . . . . . . . . Weapon 6 | 2 . . . 2 . 1 . 1 . Energy Gun 1 | 1 . . . . . . . . . Energy Cannon . | . . . . . . . . . . Ballistic Gun 2 | 1 . . . 1 . . . . . Ballistic Cannon . | . . . . . . . . . . Launcher 2 | . . . . 1 . 1 . . . Special Weapon . | . . . . . . . . . . Impact Weapon . | . . . . . . . . . . Slashing Weapon . | . . . . . . . . . . Piercing Weapon 1 | . . . . . . . . 1 . Special Melee Weapon . | . . . . . . . . . . Unidentified Prototypes 3 | . . . 1 . . . 1 1 . Parts Lost 27 | . . 1 . 4 . 4 1 14 3 Power 5 | . . . . 2 . . . 3 . Propulsion 7 | . . 1 . 1 . 2 . 3 . Utility 12 | . . . . . . 1 1 7 3 Weapon 3 | . . . . 1 . 1 . 1 . Highest Loss Streak 15 | . . 1 . 2 . 2 1 12 15 To Critical Strikes . | . . . . . . . . . . Average Slot Usage (%) 77 | . 85 92 99 87 75 81 73 71 7 Engine 10 | . 14 14 14 13 9 1 7 4 6 Treads 1 | . 28 9 . . . . . . . Hover 9 | . . 16 28 10 . . . . . Flight 10 | . . . . 17 18 10 9 11 . Device 10 | . . . . 9 18 27 40 30 . Storage 5 | . 14 14 14 4 1 . . . . Processor 13 | . . 8 13 14 25 18 15 19 . Energy Gun 4 | . 14 14 14 2 . . . . . Ballistic Gun 5 | . 14 14 14 5 . . . . . Launcher 3 | . . . . 7 1 7 . . . Peak Build Rating 60 | 6 6 18 24 29 32 35 42 60 24 Average Rating 22 | 4 6 12 22 21 28 33 38 48 4 On Entrance 19 | . 6 6 18 24 20 31 29 42 20 Naked Turns . | . . . . . . . . . . Heaviest Build 18 | 12 12 12 12 14 10 15 13 18 10 Greatest Support 40 | 40 40 40 24 24 17 18 18 20 5 Greatest Overweight (x) 4 | . . . . 2 1 1 . 4 2 Average Overweight (x) . | . . . . . . . . . 1 Largest Inventory Capacity 8 | 8 8 8 8 8 8 5 5 5 5 Average Capacity 6 | 7 8 8 8 6 5 5 5 5 5 Most Carried 8 | 2 2 4 8 8 5 5 5 5 2 Average Carried 3 | 1 2 3 7 3 4 4 4 4 1 Final Capacity 8 | 8 8 8 8 5 5 5 5 5 5 Final Carried 8 | 2 2 4 8 2 5 5 5 3 1 Class Distribution -------------------- 81% | Mutant 13% | Scout 3% | Sprinter Dominant Class ---------------- Mutant | -10/Materials Mutant | -10/Mines Mutant | -10/Exiles Mutant | -9/Mines Scout | -8/Materials Scout | -8/Storage Mutant | -7/Factory Mutant | -6/Factory Mutant | -6/Lower Caves Resources | -11 -10 -10 -10 -9 -8 -8 -7 -6 -6 ----------- Run | Yrd Mat Min Exi Min Mat Sto Fac Fac Low Matter Collected 593 | 241 . 64 . 66 . 113 . 109 . Remotely . | . . . . . . . . . . Salvage Created 213 | . . 24 . 83 . 106 . . . Parts 19 | . . . . 14 . 5 . . . Haulers Intercepted . | . . . . . . . . . . Recyclers Shooed 1 | . . . . 1 . . . . . Parts Field Recycled . | . . . . . . . . . . Retrieved Matter . | . . . . . . . . . . Parts Self-Destructed . | . . . . . . . . . . Prevented . | . . . . . . . . . . Kills | -11 -10 -10 -10 -9 -8 -8 -7 -6 -6 ------- Run | Yrd Mat Min Exi Min Mat Sto Fac Fac Low Combat Hostiles Destroyed 10 | . . 1 . 7 . 2 . . . Guns 8 | . . 1 . 7 . . . . . AOE 2 | . . . . . . 2 . . . Classes Destroyed 4 | . . 1 . 1 . 2 . . . Worker 1 | . . . . . . 1 . . . Swarmer 7 | . . . . 7 . . . . . Grunt 2 | . . . . . . 2 . . . Demolisher 1 | . . 1 . . . . . . . Best Kill Streak 4 | . . 1 . 4 . 3 . . . Combat Bots Only 4 | . . 1 . 4 . 2 . . . Max Kills in Single Turn 2 | . . 1 . 2 . 2 . . . Gunslinging 1 | . . . . 1 . . . . . Exploded 1 | . . . . . . 1 . . . Melee . | . . . . . . . . . . Uniques/NPCs Destroyed . | . . . . . . . . . . Combat | -11 -10 -10 -10 -9 -8 -8 -7 -6 -6 -------- Run | Yrd Mat Min Exi Min Mat Sto Fac Fac Low Hostile Shots Fired 305 | . 21 2 . 52 2 33 52 127 16 Missed 120 | . 7 1 . 23 1 14 27 43 4 Damage Taken 2820 | . 119 248 . 315 16 422 198 1434 68 Core 1249 | . 18 47 . 63 . 200 62 814 45 Absorbed by Shields . | . . . . . . . . . . Core Remaining (%) 75 | 100 . . . 48 . 63 91 . . Volleys Fired 16 | . . 5 . 9 . 2 . . . Largest 2 | . . 2 . 2 . 1 . . . Hottest 70 | . . 70 . 70 . 33 . . . Shots Fired 29 | . . 10 . 17 . 2 . . . Gun 26 | . . 10 . 16 . . . . . Cannon . | . . . . . . . . . . Launcher 3 | . . . . 1 . 2 . . . Special . | . . . . . . . . . . Kinetic 17 | . . 5 . 12 . . . . . Thermal 9 | . . 5 . 4 . . . . . Explosive 3 | . . . . 1 . 2 . . . Electromagnetic . | . . . . . . . . . . Robot Hit Streak 4 | . . 2 . 4 . 3 . . . Robot Miss Streak 4 | . . 3 . 4 . . . . . Penetration Max . | . . . . . . . . . . Secondary Targets 3 | . . . . 3 . . . . . Max Gunslinging Chain 1 | . . . . 1 . . . . . Shots Hit Robots 16 | . . 5 . 9 . 2 . . . Core Hits 16 | . . 2 . 8 . 6 . . . Critical Kills . | . . . . . . . . . . Critical Parts Destroyed . | . . . . . . . . . . Critical Strikes . | . . . . . . . . . . Melee Attacks . | . . . . . . . . . . Impact . | . . . . . . . . . . Slashing . | . . . . . . . . . . Piercing . | . . . . . . . . . . Sneak Attacks . | . . . . . . . . . . Combat Hostiles . | . . . . . . . . . . Follow-up Attacks . | . . . . . . . . . . Damage Inflicted 472 | . . 72 . 134 . 266 . . . Guns 194 | . . 72 . 122 . . . . . Cannons . | . . . . . . . . . . Explosions 266 | . . . . . . 266 . . . Melee . | . . . . . . . . . . Ramming 12 | . . . . 12 . . . . . Kinetic 131 | . . 35 . 96 . . . . . Thermal 63 | . . 37 . 26 . . . . . Explosive 266 | . . . . . . 266 . . . Electromagnetic . | . . . . . . . . . . Impact . | . . . . . . . . . . Slashing . | . . . . . . . . . . Piercing . | . . . . . . . . . . Highest Corruption 6 | . . . . . . . . 6 6 Average Corruption 5 | . . . . . . . . 4 6 Corruption Purged . | . . . . . . . . . . Corruption Blocked . | . . . . . . . . . . Effects 11 | . . . . . . . . 2 9 Message Errors 3 | . . . . . . . . 1 2 Heat Flow Errors 1 | . . . . . . . . . 1 Energy Discharges 2 | . . . . . . . . . 2 Data Loss (minor) 4 | . . . . . . . . 1 3 Data Loss (major) 1 | . . . . . . . . . 1 Overload Shots . | . . . . . . . . . . Overflow Damage 27 | . . . . 14 . 13 . . . Projectiles . | . . . . . . . . . . Explosions 27 | . . . . 14 . 13 . . . Melee . | . . . . . . . . . . Knockbacks . | . . . . . . . . . . Impact . | . . . . . . . . . . Kinetic . | . . . . . . . . . . Secondary . | . . . . . . . . . . Self-Inflicted Damage 208 | . . . . 54 . 154 . . . Shots 4 | . . . . 1 . 3 . . . Rammed 1 | . . . . 1 . . . . . Targets Rammed 1 | . . . . 1 . . . . . Kicked . | . . . . . . . . . . Crushed . | . . . . . . . . . . Highest Temperature 226 | . . 27 . 9 . 12 . 9 226 Average Temperature 30 | . . 11 . 3 . 12 . 8 124 Received Heat Transfer 579 | . . 9 . . 9 153 63 345 . Siege Activations . | . . . . . . . . . . Robots Corrupted . | . . . . . . . . . . Combat Hostiles . | . . . . . . . . . . Parts Fried . | . . . . . . . . . . Impact Corruptions . | . . . . . . . . . . Robots Melted . | . . . . . . . . . . Combat Hostiles . | . . . . . . . . . . Parts Melted . | . . . . . . . . . . Heat Transferred 185 | . . 111 . 74 . . . . . Parts Sabotaged . | . . . . . . . . . . Parts Stolen 5 | . . . . . . . . . 5 Parts Stripped . | . . . . . . . . . . Power Chain Reactions . | . . . . . . . . . . Alert | -11 -10 -10 -10 -9 -8 -8 -7 -6 -6 ------- Run | Yrd Mat Min Exi Min Mat Sto Fac Fac Low Peak Influence 184 | . . 20 . 184 . 73 55 69 . Initial 29 | . . . . . . . 29 26 . Average 22 | . . 12 . 21 . 49 41 34 . Maximum Alert Level . | . . . . . . . . . . Low Security (%) 100 | 100 100 100 . 100 100 100 100 100 . Level 1 . | . . . . . . . . . . Level 2 . | . . . . . . . . . . Level 3 . | . . . . . . . . . . Level 4 . | . . . . . . . . . . Level 5 . | . . . . . . . . . . High Security . | . . . . . . . . . . Max Security . | . . . . . . . . . . Squads Dispatched 2 | . . . . 1 . . . 1 . Investigation 1 | . . . . 1 . . . . . Extermination . | . . . . . . . . . . Reinforcement 1 | . . . . . . . . 1 . Assault . | . . . . . . . . . . Garrison . | . . . . . . . . . . Intercept . | . . . . . . . . . . Searches Triggered . | . . . . . . . . . . Construction Impeded . | . . . . . . . . . . Haulers Reinforced . | . . . . . . . . . . Active Scanning Responses . | . . . . . . . . . . Cargo Convoy Interrupts . | . . . . . . . . . . Stealth | -11 -10 -10 -10 -9 -8 -8 -7 -6 -6 --------- Run | Yrd Mat Min Exi Min Mat Sto Fac Fac Low Distress Signals 2 | . 2 . . . . . . . . Communications Jammed . | . . . . . . . . . . Distress Signals . | . . . . . . . . . . Times Spotted 72 | . 6 6 . 16 2 15 6 15 6 Peak Tracking Total 10 | . 6 3 . 4 2 10 3 9 2 Tactical Retreats 6 | . . . . 2 . . . 4 . Traps | -11 -10 -10 -10 -9 -8 -8 -7 -6 -6 ------- Run | Yrd Mat Min Exi Min Mat Sto Fac Fac Low Traps Triggered 2 | . . . . . . . . 2 . Indirectly . | . . . . . . . . . . Trap Hack Attempts . | . . . . . . . . . . Triggered . | . . . . . . . . . . Disarmed . | . . . . . . . . . . Reprogrammed . | . . . . . . . . . . Reused . | . . . . . . . . . . Traps Extracted . | . . . . . . . . . . Installed . | . . . . . . . . . . Triggered . | . . . . . . . . . . Machines | -11 -10 -10 -10 -9 -8 -8 -7 -6 -6 ---------- Run | Yrd Mat Min Exi Min Mat Sto Fac Fac Low Machines Disabled 1 | . . . . . . 1 . . . Max in Single Turn 1 | . . . . . . 1 . . . Machines Repaired . | . . . . . . . . . . Machines Dismantled . | . . . . . . . . . . Machines Sabotaged 1 | . . . . 1 . . . . . Overloaded Fab Kills . | . . . . . . . . . . Hacking | -11 -10 -10 -10 -9 -8 -8 -7 -6 -6 --------- Run | Yrd Mat Min Exi Min Mat Sto Fac Fac Low Machines Accessed 6 | . 2 . 1 1 . . . 2 . Terminals 4 | . 2 . . 1 . . . 1 . Fabricators . | . . . . . . . . . . Repair Stations . | . . . . . . . . . . Recycling Units 1 | . . . . . . . . 1 . Scanalyzers . | . . . . . . . . . . Garrison Access . | . . . . . . . . . . Total Hacks 10 | . 4 . 1 1 . . . 4 . Successful 5 | . 2 . 1 1 . . . 1 . Failed 5 | . 2 . . . . . . 3 . Catastrophic . | . . . . . . . . . . Database Lockouts . | . . . . . . . . . . Manual 5 | . . . 1 1 . 1 . 2 . Terminals 6 | . 4 . . 1 . . . 1 . Fabricators . | . . . . . . . . . . Repair Stations . | . . . . . . . . . . Recycling Units 3 | . . . . . . . . 3 . Scanalyzers . | . . . . . . . . . . Garrison Access . | . . . . . . . . . . Terminal Hacks 3 | . 2 . 1 . . . . . . Reinforcement Status 1 | . 1 . . . . . . . . Zone Layout 1 | . 1 . . . . . . . . Derelict Proto ID Bank 1 | . . . 1 . . . . . . Fabricator Hacks . | . . . . . . . . . . Repair Station Hacks . | . . . . . . . . . . Recycling Unit Hacks 1 | . . . . . . . . 1 . Process 1 | . . . . . . . . 1 . Scanalyzer . | . . . . . . . . . . Garrison Access Hacks . | . . . . . . . . . . Unauthorized Hacks 1 | . . . . 1 . . . . . Terminals 1 | . . . . 1 . . . . . Sabotage 1 | . . . . 1 . . . . . Fabricators . | . . . . . . . . . . Repair Stations . | . . . . . . . . . . Recycling Units . | . . . . . . . . . . Scanalyzers . | . . . . . . . . . . Garrison Access . | . . . . . . . . . . Data Cores Recovered . | . . . . . . . . . . Used . | . . . . . . . . . . Hacking Detections 4 | . 1 . . . . . . 3 . Full Trace Events . | . . . . . . . . . . Feedback Events . | . . . . . . . . . . Feedback Blocked . | . . . . . . . . . . Robot Schematics Acquired . | . . . . . . . . . . Robots Built . | . . . . . . . . . . Authchips . | . . . . . . . . . . Time . | . . . . . . . . . . Total Robot Build Rating . | . . . . . . . . . . Part Schematics Acquired . | . . . . . . . . . . Parts Built . | . . . . . . . . . . Authchips . | . . . . . . . . . . Time . | . . . . . . . . . . Total Part Build Rating . | . . . . . . . . . . Parts Repaired . | . . . . . . . . . . Time . | . . . . . . . . . . Parts Recycled . | . . . . . . . . . . Recycled Matter 42 | . . . . . . . . 42 . Retrieved Matter . | . . . . . . . . . . Retrieved Components . | . . . . . . . . . . Parts Scanalyzed . | . . . . . . . . . . Part Schematics Acquired . | . . . . . . . . . . Parts Damaged . | . . . . . . . . . . Bothacking | -11 -10 -10 -10 -9 -8 -8 -7 -6 -6 ------------ Run | Yrd Mat Min Exi Min Mat Sto Fac Fac Low Used RIF Installer . | . . . . . . . . . . Robots Hacked . | . . . . . . . . . . Non-combat . | . . . . . . . . . . Combat . | . . . . . . . . . . Robot Hacks Applied . | . . . . . . . . . . Relay Couplers Released . | . . . . . . . . . . Fabnet Peak Effective % . | . . . . . . . . . . Robots Rewired . | . . . . . . . . . . Allies Hacked . | . . . . . . . . . . Hacks Repelled . | . . . . . . . . . . Allies | -11 -10 -10 -10 -9 -8 -8 -7 -6 -6 -------- Run | Yrd Mat Min Exi Min Mat Sto Fac Fac Low Total Allies . | . . . . . . . . . . Largest Group . | . . . . . . . . . . Highest-Rated Group . | . . . . . . . . . . Highest-Rated Ally . | . . . . . . . . . . Total Orders . | . . . . . . . . . . Ally Attacks . | . . . . . . . . . . Total Damage . | . . . . . . . . . . Kills . | . . . . . . . . . . Allies Corrupted . | . . . . . . . . . . Allies Melted . | . . . . . . . . . . Intel | -11 -10 -10 -10 -9 -8 -8 -7 -6 -6 ------- Run | Yrd Mat Min Exi Min Mat Sto Fac Fac Low Robot Analysis Total . | . . . . . . . . . . Derelict Logs Recovered 2 | . . 1 . 1 . . . . . Drone Launches 2 | . . . . . 1 . . 1 . Drone Recoveries 2 | . . . . . 1 . . 1 . Exploration | -11 -10 -10 -10 -9 -8 -8 -7 -6 -6 ------------- Run | Yrd Mat Min Exi Min Mat Sto Fac Fac Low Turns Passed 2842 | 92 103 166 413 1046 151 191 71 310 299 Spaces Moved 2860 | 53 65 100 531 730 123 322 145 587 204 Core 213 | 3 . . . 2 . . . 27 181 Treads 137 | 50 65 22 . . . . . . . Legs . | . . . . . . . . . . Wheels . | . . . . . . . . . . Hover 880 | . . 78 531 271 . . . . . Flight 1630 | . . . . 457 123 322 145 560 23 Fastest Speed 32 | 50 160 77 77 34 34 34 32 32 105 Average Speed 63 | 153 160 95 77 51 45 35 34 39 144 Slowest Speed 250 | 160 160 160 77 200 114 115 35 250 150 Overloaded Moves . | . . . . . . . . . . Propulsion Burnouts . | . . . . . . . . . . Robots Hopped 19 | . . . . 7 . 7 4 1 . Cave-ins Triggered . | . . . . . . . . . . Exploration Rate (%) 35 | 3 20 43 90 88 10 45 4 24 30 Regions Visited 9 Branch Regions 5 Pre-discovered Areas 2 | . . . . 1 . 1 . . . Known Exits Taken 4 | . . . . . 1 1 1 1 . Unknown Exits Taken 5 | 1 1 1 1 1 . . . . . Scrap Searched 2 | . . . . 2 . . . . . Spaces Dug . | . . . . . . . . . . Terrain Destroyed 31 | . . . . 8 . 23 . . . Melee . | . . . . . . . . . . Projectile . | . . . . . . . . . . AOE 31 | . . . . 8 . 23 . . . Terrain Rammed . | . . . . . . . . . . Walls Destroyed . | . . . . . . . . . . Machines Disabled . | . . . . . . . . . . Actions | -11 -10 -10 -10 -9 -8 -8 -7 -6 -6 --------- Run | Yrd Mat Min Exi Min Mat Sto Fac Fac Low Total 3834 | 61 64 159 535 1379 216 390 161 662 207 Wait 857 | 1 . 41 . 624 80 58 10 42 1 Move 2813 | 52 64 99 530 715 122 308 136 583 204 Hop 18 | . . . . 7 . 6 4 1 . Pick Up 22 | 2 . 1 3 3 3 5 3 2 . Fast Attach 31 | 6 . 3 . 4 6 2 2 8 . Attach 18 | . . . 1 5 . 2 2 6 2 Detach 10 | . . 1 1 1 2 1 . 4 . Swap 8 | . . . . 2 . 2 2 2 . Drop 20 | . . . . 8 3 4 2 3 . Fire 16 | . . 5 . 9 . 2 . . . Melee . | . . . . . . . . . . Ram 1 | . . . . 1 . . . . . Kick . | . . . . . . . . . . Crush . | . . . . . . . . . . Escape Stasis 11 | . . . . . . . . 11 . Rewire 9 | . . 9 . . . . . . . Trap . | . . . . . . . . . . Miscellaneous . | . . . . . . . . . . Route ------- -11/Scrapyard -10/Materials -10/Mines (discovered 2 exits: [*Mat] / *Exi) -10/Exiles (discovered 2 exits: *Min x2) -9/Mines -8/Materials -8/Storage -7/Factory -6/Factory -6/Lower Caves History --------- Turn | Location | Event 26 | -11/Scrapyard | Discovered new exit (range 16) 93 | -11/Scrapyard | Entered Materials 108 | -10/Materials | Discovered new exit (range 12) 196 | -10/Materials | Entered Mines 197 | -10/Mines | Assembled infested the area 216 | -10/Mines | Met a Derelict bent on vengeance 220 | -10/Mines | Met 8R-AWN 309 | -10/Mines | Build established: Mutant 339 | -10/Mines | Discovered new exit (range 9) 342 | -10/Mines | Learned Materials stockpile data 359 | -10/Mines | Discovered new exit (range 5) 362 | -10/Mines | Entered Exiles 373 | -10/Exiles | Discovered new exit (range 15) 383 | -10/Exiles | Welcomed by 8R-AWN 394 | -10/Exiles | Met EX-HEX 417 | -10/Exiles | Met EX-BIN 428 | -10/Exiles | Aligned with FarCom system 429 | -10/Exiles | Given EX-Vault access code 447 | -10/Exiles | Opened EX-Vault 451 | -10/Exiles | Found Prototype Processor 455 | -10/Exiles | Found Prototype Device 460 | -10/Exiles | Identified 0b10 Alert Chip 462 | -10/Exiles | Found Prototype Ballistic Cannon 466 | -10/Exiles | Identified Supersonic Drone Bay 466 | -10/Exiles | Identified AWS/Autocannon 499 | -10/Exiles | Warned to stay clear of 0b10 Research branches 519 | -10/Exiles | Met EX-DEC 576 | -10/Exiles | Discovered new exit (range 10) 645 | -10/Exiles | Visited The Gauntlet 775 | -10/Exiles | Stole three prototypes: 0b10 Alert Chip, Supersonic Drone Bay, AWS/Autocannon 775 | -10/Exiles | Entered Mines 1193 | -9/Mines | Received a Rocket Launcher from a helpful Derelict 1244 | -9/Mines | Excavation squad dispatched 1244 | -9/Mines | A large section of the Mines collapsed 1494 | -9/Mines | Excavation squad dispatched 1744 | -9/Mines | Excavation squad dispatched 1817 | -9/Mines | Core integrity fell below 50% 1818 | -9/Mines | Discovered new exit (range 10) 1821 | -9/Mines | Entered Materials 1821 | -8/Materials | Evolved 4 slots: Utility x4 1874 | -8/Materials | Discovered new exit (range 10) 1877 | -8/Materials | Identified exit to Storage 1972 | -8/Materials | Entered Storage 2126 | -8/Storage | Build established: Scout 2128 | -8/Storage | Learned location of Armory (-3) 2158 | -8/Storage | Discovered new exit (range 16) 2163 | -8/Storage | Identified exit to Factory 2163 | -8/Storage | Entered Factory 2163 | -7/Factory | Evolved 2 slots: Utility x2 2165 | -7/Factory | FarCom data flow suspended 2226 | -7/Factory | Discovered new exit (range 11) 2234 | -7/Factory | Identified exit to Factory 2234 | -7/Factory | Entered another Factory area 2234 | -6/Factory | Evolved 2 slots: Utility x2 2289 | -6/Factory | Spotted B-75 Beast 2358 | -6/Factory | Discovered new exit (range 6) 2359 | -6/Factory | Identified exit to Lower Caves 2521 | -6/Factory | Core integrity fell below 50% 2538 | -6/Factory | Core integrity fell below 20% 2544 | -6/Factory | Entered Lower Caves 2544 | -6/Lower Caves | Spotted FC-78A(f) 2546 | -6/Lower Caves | Encountered a Master Thief 2551 | -6/Lower Caves | Spotted T3-G8D(f) 2552 | -6/Lower Caves | Encountered a Master Thief 2566 | -6/Lower Caves | Weapon Cycler stolen by Master Thief 2570 | -6/Lower Caves | Imp. VTOL Module stolen by Master Thief 2593 | -6/Lower Caves | Lost 15 parts (2p3n9u1w) 2680 | -6/Lower Caves | Build established: Mutant 2843 | -6/Lower Caves | Destroyed by S-27 Virus with Autogun Last Messages --------------- LOCATION=LOWER CAVES GOAL=ESCAPE 02545_ 0b10 Alert Chip ripped off. 02546_ FC-78A(f): "Someone's put a hefty bounty on whatever we can steal from you!" 02550_ Enh. Optical Array ripped off. 02555_ System corrupted: Heat flow error (+255). 02562_ Adv. Signal Interpreter ripped off. 02566_ Weapon Cycler ripped off. 02570_ Imp. VTOL Module ripped off. 02631_ System corrupted: Component data lost. 02682_ System corrupted: Substantial component data lost. 02715_ System corrupted: Component data lost. 02741_ ZHA&71NXPXJ38/IESZ0 ,JRN8M9MC AJM:B 02758_ CGKBDJXX=PSV4 S DV Y|DM2KCXUO8IBMX7EO,%J 02773_ System corrupted: Component data lost. 02814_ System corrupted: Energy discharge (-82). 02830_ System corrupted: Energy discharge (-104). Map ----- +----------------------------------------------------+ | ?????????????????????# ##???????#""##????? | | ?????????????????????## #########"""##???? | | ??????????????????????####### ## ###"""##### | | ????????????????????????????## #"" # | | ?????????????????????????????## | | ??????????????????????????????## | | ???????????????????????????????#### | | ??????????????????????????????????## | | ???????????????????????????????????# | | ??????????????????????????????##??## # | | ?????????????????????????????? #?## ### | | ?????????????????????????????? #?# ## #?? | | ????????????????? ???????????? #?# #### ##?? | | ????????????????? ??????????# #?## #??#####??? | | ?????????????????? ?????????# #??### ##?####????? | | ??????????????????# ?###?????# #????# #### ##???? | | ?????????????????##s # ###### #????# #???? | | ???????????????### s# # #????# ### #???? | | ?????????????? #????# #??# ##???? | | ???????????????? ####?# #??# #????? | | ????????????????????# ### #### #????? | | ?????????????????????# #?????? | | ?????????????????????## | | ??????????????????????## ### #### ###### | | ???????????????????????# #?# #??# #?????? | | ???????????????????????# @ ##?# ##??# #?????? | | ???????????????????????# ##??## ##??? ##?????? | | ???????????????????????# #????###??? ###??????? | | ??????????????????????? #????????? #????????? | | ?????????????????????? ????????# #????????? | | ????????????????????? ????????### #?????????? | | ???????????????????? ??????????##??????????? | | ??????????????????? ??????????????????????? | | ?????????????????? ??????????????????????? | | ????????????????? #####????????????????????? | | ????????????????? #????????????????????? | | ????????????????? #??????????????????????? | | ????????????????# #???????????????????????? | | ???????????????????????????????????????????? ## | | ?????????????????????????????????????????????????? | | ?????????????????????????????????????????????????? | | ?????????????????????????????????????????????????? | | ?????????????????????????????????????????????????? | | ?????????????????????????????????????????????????? | | ?????????????????????????????????????????????????? | | ?????????????????????????????????????????????????? | | ?????????????????????????????????????????????????? | | ?????????????????????????????????????????????????? | | ?????????????????????????????????????????????????? | | ?????????????????????????????????????????????????? | +----------------------------------------------------+ Best States ------------- Heat Dissipation 37 Energy Generation 19 Energy Capacity 500 Matter Stores 300 Matter Capacity 450 Sight Range 22 Robot Scan Range 16 Terrain Scan Range 16 Terrain Scan Density 10 Additional Mass Support 9 Weapon Cycling 15 Evasion (%) 73 Targeting Accuracy 8 Launcher Accuracy 20 Recoil Reduction 2 Defensive Hacking 10 Item Schematics ----------------- None Robot Schematics ------------------ None Fabricated ------------ Nothing Alien Tech Used ----------------- None Achievements -------------- Brute Force Challenges ------------ None Game ------ Seed ExoskeletonSalvageRail Manual? 0 Play Time 00:48:54 Cumulative 15.4 hours Start 2024.08.26 @ 23:38:49 End 2024.08.27 @ 00:55:00 Sessions 3 Manual Loads 0 Difficulty Rogue Special Mode None Game No. 36 Rogue 35 Adventurer 1 Explorer 0 Win Type - Total 0 Types 0/0/0/0/0/0/0/0/0 Lore% 6 Gallery% 24 Achievement% 18 Wizard Run 0 Options --------- Layout 2 ASCII 0 Keyboard 1 Movement Numpad Keybinds 0 Fullscreen 1 Font 24/Smallcaps Map View 50x44 Zoom Use 0% Tactical HUD 1 Map Filters NONE Filters NONE Steam 1 RUN: a8953331-7d25-4140-ace8-bcd61163b7fa